Cogmind - Beta 17.1 @@@ ROGUE MODE // 2026.08.30 @ 18:18:04 Player: TheSkyeDoctor Result: Destroyed by H-55 Commando with Assault Rifle Performance ------------- Evolutions (2) 1000 Regions Visited (3) 600 Robots Destroyed (29) 145 Value Destroyed (333) 333 Prototype IDs (0) 0 Alien Tech Used (0) 0 Bonus (0) 0 TOTAL SCORE: 2078 Bonus ------- None Cogmind --------- Core Integrity 0/550 Matter 290/300 Energy 86/100 System Corruption 0% Temperature Cool (0) Movement Core (50) Location -8/Materials Parts ------- > --- POWER (1) -------- (None) > --- PROPULSION (4) --- (None) > --- UTILITY (2) ------ Terrain Scan Processor > --- WEAPON (4) ------- (None) > --- INVENTORY (5) ---- Ion Engine High-capacity Storage Unit Improved Terrain Scanner Seismic Detector Improved Light Armor Plating Peak State ------------ > --- POWER ------------ Ion Engine > --- PROPULSION ------- Aluminum Leg Aluminum Leg Aluminum Leg > --- UTILITY ---------- High-capacity Storage Unit Seismic Detector > --- WEAPON ----------- EM Pulse Gun Assault Rifle > --- INVENTORY -------- Ion Engine Improved Terrain Scanner Light Armor Plating Light Armor Plating [Rating: 8] Favorites ----------- Power Ion Engine Engine Ion Engine Propulsion Aluminum Leg Leg Aluminum Leg Utility Seismic Detector Device Seismic Detector Storage High-capacity Storage Unit Processor Terrain Scan Processor Weapon Assault Rifle Energy Gun EM Pulse Gun Ballistic Gun Assault Rifle Build | -11 -10 -9 -8 ------- Run | Yrd Mat Mat Mat Slots Evolved 4 | . . 2 2 Power . | . . . . Propulsion 2 | . . 2 . Utility . | . . . . Weapon 2 | . . . 2 Parts Attached 15 | 9 2 1 3 Power 3 | 2 1 . . Engine 3 | 2 1 . . Core . | . . . . Reactor . | . . . . Propulsion 3 | 2 . 1 . Treads . | . . . . Leg 3 | 2 . 1 . Wheel . | . . . . Hover . | . . . . Flight . | . . . . Utility 6 | 2 1 . 3 Device 3 | 1 . . 2 Storage 2 | 1 1 . . Processor 1 | . . . 1 Hackware . | . . . . Protection . | . . . . Artifact . | . . . . Weapon 3 | 3 . . . Energy Gun 2 | 2 . . . Energy Cannon . | . . . . Ballistic Gun 1 | 1 . . . Ballistic Cannon . | . . . . Launcher . | . . . . Special Weapon . | . . . . Impact Weapon . | . . . . Slashing Weapon . | . . . . Piercing Weapon . | . . . . Special Melee Weapon . | . . . . Unidentified Prototypes . | . . . . Parts Lost 7 | . . 5 2 Power 1 | . . . 1 Propulsion 3 | . . 3 . Utility 1 | . . . 1 Weapon 2 | . . 2 . Highest Loss Streak 3 | . . 3 2 To Critical Strikes . | . . . . Average Backups 3 | 1 3 4 5 Power . | . 1 1 1 Propulsion . | . . . . Utility 2 | . 2 3 4 Weapon . | . . . . Tool/Special . | . . . . Unused Backups 3 | . . . 3 Power . | . . . . Propulsion . | . . . . Utility 3 | . . . 3 Weapon . | . . . . Tool/Special . | . . . . Average Slot Usage (%) 82 | . 100 78 21 Engine 12 | . 14 11 7 Leg 24 | . 28 31 . Device 12 | . 14 11 7 Storage 10 | . 14 10 . Processor 1 | . . . 7 Energy Gun 10 | . 14 7 . Ballistic Gun 10 | . 14 8 . Peak Build Rating 8 | 7 7 8 6 Average Rating 6 | 5 7 7 4 On Entrance 4 | . 7 7 2 Avg Prop Armor Cover (%) . | . . . . Naked Turns . | . . . . Heaviest Build 50 | 15 50 50 6 Greatest Support 30 | 20 20 30 3 Greatest Overweight (x) 2 | 1 2 2 1 Average Overweight (x) . | . 1 . . Largest Inventory Capacity 20 | 8 20 20 5 Average Capacity 14 | 7 19 18 5 Most Carried 5 | 3 5 5 5 Average Carried 3 | 1 3 4 4 Final Capacity 20 | 8 20 5 5 Final Carried 5 | 2 5 5 5 Class Distribution -------------------- 100% | Mutant Dominant Class ---------------- Mutant | -10/Materials Mutant | -9/Materials Mutant | -8/Materials Resources | -11 -10 -9 -8 ----------- Run | Yrd Mat Mat Mat Matter Collected 492 | 362 77 53 . Remotely . | . . . . Salvage Created 894 | 263 491 140 . Parts 65 | 24 27 14 . Haulers Intercepted 1 | . 1 . . Recyclers Shooed 2 | 1 1 . . Parts Field Recycled . | . . . . Retrieved Matter . | . . . . Parts Self-Destructed . | . . . . Prevented . | . . . . Parts Restored . | . . . . Kills | -11 -10 -9 -8 ------- Run | Yrd Mat Mat Mat Combat Hostiles Destroyed 9 | . 7 2 . Guns 9 | . 7 2 . Classes Destroyed 9 | 3 4 2 . Worker 3 | 2 . 1 . Builder 1 | . . 1 . Tunneler 9 | 8 1 . . Hauler 1 | . 1 . . Recycler 4 | 1 3 . . Watcher 2 | . 2 . . Swarmer 6 | . 6 . . Grunt 1 | . 1 . . Sentry 2 | . . 2 . Best Kill Streak 6 | 5 6 4 . Combat Bots Only 3 | . 3 2 . Max Kills in Single Turn 2 | 2 2 1 . Gunslinging 1 | . 1 . . Exploded . | . . . . Melee . | . . . . Uniques/NPCs Destroyed . | . . . . Combat | -11 -10 -9 -8 -------- Run | Yrd Mat Mat Mat Hostile Shots Fired 154 | . 26 69 59 Missed 51 | . 11 21 19 Hits 103 | . 15 48 40 Projectile 103 | . 15 48 40 Critical Strikes 8 | . . 3 5 Damage Taken 1472 | 56 157 617 642 Core 842 | . 28 250 564 Absorbed by Shields . | . . . . Core Remaining (%) 75 | 100 88 37 . Volleys Fired 63 | 24 24 15 . Largest 2 | 2 2 2 . Hottest 60 | 60 60 60 . Shots Fired 116 | 48 48 20 . Gun 116 | 48 48 20 . Cannon . | . . . . Launcher . | . . . . Special . | . . . . Kinetic 63 | 24 24 15 . Thermal . | . . . . Explosive . | . . . . Electromagnetic 53 | 24 24 5 . Robot Hit Streak 7 | 5 6 7 . Robot Miss Streak 3 | 3 3 3 . Penetration Max . | . . . . Secondary Targets 4 | . 3 1 . Max Gunslinging Chain 1 | . 1 1 . Shots Hit Robots 69 | 28 26 15 . Core Hits 38 | 13 18 6 1 Critical Kills 1 | . 1 . . Critical Parts Destroyed . | . . . . Critical Strikes 1 | . 1 . . Destroy 1 | . 1 . . Melee Attacks . | . . . . Impact . | . . . . Slashing . | . . . . Piercing . | . . . . Sneak Attacks . | . . . . Combat Hostiles . | . . . . Follow-up Attacks . | . . . . Damage Inflicted 1154 | 454 475 214 11 Guns 939 | 361 364 214 . Cannons . | . . . . Explosions 204 | 93 111 . . Melee . | . . . . Ramming 11 | . . . 11 Kinetic 505 | 177 159 169 . Thermal 204 | 93 111 . . Explosive . | . . . . Electromagnetic 434 | 184 205 45 . Impact . | . . . . Slashing . | . . . . Piercing . | . . . . Highest Corruption . | . . . . Average Corruption . | . . . . Corruption Purged . | . . . . Corruption Blocked . | . . . . Overload Shots . | . . . . Overflow Damage . | . . . . Projectiles . | . . . . Explosions . | . . . . Melee . | . . . . Knockbacks . | . . . . Impact . | . . . . Kinetic . | . . . . Secondary . | . . . . Self-Inflicted Damage 87 | 57 26 . 4 Shots 3 | 2 1 . . Rammed 4 | . . . 4 Targets Rammed 4 | . . . 4 Kicked . | . . . . Crushed . | . . . . Highest Temperature 42 | 12 24 42 2 Average Temperature 14 | 12 9 22 1 Received Heat Transfer 705 | . 30 324 351 Siege Activations . | . . . . Martial Activations . | . . . . Shielding Activations . | . . . . Robots Disrupted . | . . . . Combat Hostiles . | . . . . Robots Corrupted . | . . . . Combat Hostiles . | . . . . Parts Fried . | . . . . Impact Corruptions . | . . . . Robots Melted . | . . . . Combat Hostiles . | . . . . Parts Melted . | . . . . Heat Transferred 200 | 100 100 . . Parts Sabotaged . | . . . . Parts Stolen . | . . . . Parts Stripped . | . . . . Power Chain Reactions 4 | 2 2 . . Alert | -11 -10 -9 -8 ------- Run | Yrd Mat Mat Mat Maximum Alert Level . | . . . . Low Security (%) 100 | 100 100 100 100 Level 1 . | . . . . Level 2 . | . . . . Level 3 . | . . . . Level 4 . | . . . . Level 5 . | . . . . High Security . | . . . . Max Security . | . . . . Peak Influence 164 | 15 164 50 . Initial 42 | . . 42 . Average 35 | 1 72 16 . Influence Increases 405 | 55 274 76 . Destroy 0b10 Robot/C 180 | . 140 40 . Destroy 0b10 Robot/NC 100 | 55 35 10 . Destroy Leader 56 | . 36 20 . Successful Hack 5 | . . 5 . Disable Machine 30 | . 30 . . Destroy Structure 4 | . 3 1 . Lose Combat Pursuer 30 | . 30 . . Influence Decreases 405 | 55 174 176 . Entered New Map 58 | . . 58 . Time Decay 326 | 55 174 97 . Lost Part 21 | . . 21 . Squads Dispatched 2 | . 1 . 1 Investigation . | . . . . Extermination . | . . . . Reinforcement 2 | . 1 . 1 Assault . | . . . . Garrison . | . . . . Intercept . | . . . . Searches Triggered . | . . . . Construction Impeded . | . . . . Haulers Reinforced . | . . . . Active Scanning Responses . | . . . . Cargo Convoy Interrupts . | . . . . Stealth | -11 -10 -9 -8 --------- Run | Yrd Mat Mat Mat Distress Signals 3 | . 2 . 1 Communications Jammed . | . . . . Distress Signals . | . . . . Times Spotted 35 | . 11 9 15 Peak Tracking Total 14 | . 2 6 14 Tactical Retreats 2 | . 2 . . Traps | -11 -10 -9 -8 ------- Run | Yrd Mat Mat Mat Traps Triggered . | . . . . Indirectly . | . . . . Trap Hack Attempts . | . . . . Triggered . | . . . . Disarmed . | . . . . Reprogrammed . | . . . . Reused . | . . . . Traps Extracted . | . . . . Installed . | . . . . Triggered . | . . . . Machines | -11 -10 -9 -8 ---------- Run | Yrd Mat Mat Mat Machines Disabled 2 | . 2 . . Max in Single Turn 2 | . 2 . . Machines Repaired . | . . . . Machines Dismantled . | . . . . Machines Sabotaged . | . . . . Overloaded Fab Kills . | . . . . Hacking | -11 -10 -9 -8 --------- Run | Yrd Mat Mat Mat Machines Accessed 4 | . 1 3 . Terminals 3 | . 1 2 . Fabricators . | . . . . Repair Stations . | . . . . Recycling Units 1 | . . 1 . Scanalyzers . | . . . . Garrison Access . | . . . . Total Hacks 6 | . 1 5 . Successful 3 | . . 3 . Failed 3 | . 1 2 . Catastrophic 1 | . 1 . . Database Lockouts . | . . . . Manual 4 | . 1 3 . Terminals 4 | . 1 3 . Fabricators . | . . . . Repair Stations . | . . . . Recycling Units 2 | . . 2 . Scanalyzers . | . . . . Garrison Access . | . . . . Terminal Hacks . | . . . . Fabricator Hacks . | . . . . Repair Station Hacks . | . . . . Recycling Unit Hacks 1 | . . 1 . Retrieve Matter 1 | . . 1 . Scanalyzer . | . . . . Garrison Access Hacks . | . . . . Unauthorized Hacks 2 | . . 2 . Terminals 2 | . . 2 . Botnet 2 | . . 2 . Fabricators . | . . . . Repair Stations . | . . . . Recycling Units . | . . . . Scanalyzers . | . . . . Garrison Access . | . . . . Data Cores Recovered . | . . . . Used . | . . . . Hacking Detections 3 | . 1 2 . Full Trace Events . | . . . . Feedback Events . | . . . . Feedback Blocked . | . . . . Robot Schematics Acquired . | . . . . Robots Built . | . . . . Authchips . | . . . . Time . | . . . . Total Robot Build Rating . | . . . . Part Schematics Acquired . | . . . . Parts Built . | . . . . Authchips . | . . . . Time . | . . . . Total Part Build Rating . | . . . . Part Studies Acquired . | . . . . Parts Repaired . | . . . . Time . | . . . . Parts Recycled . | . . . . Recycled Matter . | . . . . Retrieved Matter . | . . . . Retrieved Components . | . . . . Parts Scanalyzed . | . . . . Part Schematics Acquired . | . . . . Parts Damaged . | . . . . Bothacking | -11 -10 -9 -8 ------------ Run | Yrd Mat Mat Mat Used RIF Installer . | . . . . Robots Hacked . | . . . . Non-combat . | . . . . Combat . | . . . . Robot Hacks Applied . | . . . . Relay Couplers Released . | . . . . Fabnet Peak Effective % . | . . . . Robots Rewired . | . . . . Allies Hacked . | . . . . Hacks Repelled . | . . . . Allies | -11 -10 -9 -8 -------- Run | Yrd Mat Mat Mat Total Allies . | . . . . Largest Group . | . . . . Highest-Rated Group . | . . . . Highest-Rated Ally . | . . . . Total Orders . | . . . . Ally Attacks . | . . . . Total Damage . | . . . . Kills . | . . . . Allies Corrupted . | . . . . Allies Melted . | . . . . Intel | -11 -10 -9 -8 ------- Run | Yrd Mat Mat Mat Active Infowar (turns) 948 | 34 554 249 111 Terrain 88 | . . . 88 Seismic 860 | 34 554 249 23 Robot Analysis Total . | . . . . Derelict Logs Recovered . | . . . . Drone Launches . | . . . . Drone Recoveries . | . . . . Exploration | -11 -10 -9 -8 ------------- Run | Yrd Mat Mat Mat Turns Passed 1257 | 322 554 249 132 Spaces Moved 642 | 201 178 120 143 Core 163 | 15 . 5 143 Treads . | . . . . Legs 479 | 186 178 115 . Wheels . | . . . . Hover . | . . . . Flight . | . . . . Fastest Speed 50 | 50 120 100 50 Average Speed 154 | 117 238 177 81 Slowest Speed 260 | 120 260 260 100 Overloaded Moves . | . . . . Propulsion Burnouts . | . . . . Robots Hopped . | . . . . Potential Cave-ins . | . . . . Cave-ins Triggered . | . . . . Exploration Rate (%) 22 | 6 36 20 27 Regions Visited 3 Branch Regions . Pre-discovered Areas . | . . . . Known Exits Taken . | . . . . Unknown Exits Taken 3 | 1 1 1 . Scrap Searched . | . . . . Spaces Dug . | . . . . Terrain Destroyed 9 | 6 3 . . Melee . | . . . . Projectile . | . . . . AOE 9 | 6 3 . . Terrain Rammed . | . . . . Walls Destroyed . | . . . . Machines Disabled . | . . . . Actions | -11 -10 -9 -8 --------- Run | Yrd Mat Mat Mat Total 791 | 236 260 136 159 Wait 55 | . 52 . 3 Move 639 | 200 177 119 143 Hop . | . . . . Pick Up 7 | 2 3 . 2 Fast Attach 8 | 6 . . 2 Attach 3 | 1 . 1 1 Detach 2 | . . 1 1 Swap 4 | 2 2 . . Drop 6 | 1 2 . 3 Fire 63 | 24 24 15 . Melee . | . . . . Ram 4 | . . . 4 Kick . | . . . . Crush . | . . . . Escape Stasis . | . . . . Rewire . | . . . . Trap . | . . . . Miscellaneous . | . . . . Route ------- -11/Scrapyard -10/Materials -9/Materials -8/Materials History --------- Turn | Location | Event 5 | -11/Scrapyard | Discovered new exit (range 15) 323 | -11/Scrapyard | Entered Materials 324 | -10/Materials | Build established: Mutant 833 | -10/Materials | Discovered new exit (range 9) 877 | -10/Materials | Entered another Materials area 877 | -9/Materials | Evolved 2 slots: Propulsion x2 1116 | -9/Materials | Core integrity fell below 50% 1118 | -9/Materials | Discovered new exit (range 8) 1126 | -9/Materials | Entered another Materials area 1126 | -8/Materials | Evolved 2 slots: Weapon x2 1152 | -8/Materials | Lost 3 parts (3n) 1229 | -8/Materials | Core integrity fell below 50% 1250 | -8/Materials | Core integrity fell below 20% 1258 | -8/Materials | Destroyed by H-55 Commando with Assault Rifle Last Messages --------------- 01206_ K-01 Serf collects debris. 01214_ T-07 Excavator is excavating. 01216_ U-05 Engineer builds a Door. 01217_ Critical hit (Burn: +37). 01219_ G-47 Trooper suffers critical hit (Burn). 01222_ T-07 Excavator is excavating. 01223_ Critical hit (Burn: +37). 01224_ Ion Engine destroyed. 01226_ Imp. Terrain Scanner destroyed. 01227_ Slammed into G-47 Trooper. 01227_ W-25 Informer sends out distress signal. 01228_ Slammed into G-47 Trooper. 01229_ T-07 Excavator destroyed. 01230_ Slammed into G-47 Trooper. 01242_ ALERT: Hostiles spotted, dispatching reinforcements to Terminal M004. 01246_ Acquired Imp. Terrain Scanner. 01250_ Critical hit (Burn: +37). 01251_ M-28 Smith repairs G-50 Soldier. 01257_ Dropped Lgt. Armor Plating. Map ----- +----------------------------------------------------+ | ?????????????????????????????????????????????????? | | ?????????????????????????????????????????????????? | | ?????????????????????????????????????????????????? | | ?????????????????????????????????????????????????? | | ?????????????????????????????????????????????????? | | ?????????????????????????????????????????????????? | | ?????????????????????????????????????????????????? | | ?????????????????????????????????????????????????? | | ?????????????????????????????????????????????????? | | ?????????????????????????????????????????????????? | | ???????????????????????#?????????????????????????? | | ?????????????????????????????????????????????????? | | ?????????????????????????? ? ????????????????????? | | ?????????????????????????????????????????????????? | | ?????????????????????????????????????????????????? | | ?????????????????????????????????????????????????? | | ??????????????????#??????????????????????????????? | | ?????????????????????????????????????????????????? | | ????????????????????????????????????#????????????? | | ??????????????????#??????????????????????????????? | | ?????????????????## ? ???????????????????????????? | | ??????????????????# ??????#######???#???????????? | | ??????????????#???# ###### !#??#????????????? | | ??????????????????# #???????#???????? | | ??????????????##??# h " #???????????????? | | ????????????????#?#u @ #??????????????## | | ??????????????????# ###### #?? ?????????## | | ??????????????????????#?#??## ##? ? ?????#????# | | ??????????????????????####??# #? ?????????????#" | | ????????????????? ????#! # #????? ?????????#" | | ??????????????????????# [ + #?? ????""????#?#" | | ??????????????????#???# # #??????"""??#???#" | | ????????????????? # ??# ??# #???? ??#####" | | ?????????????????## ##???## ##??? ?????# #? | | ???????????????### ##### ###+######### ### | | ?????????????? ! %* | | ?????????????? T % ! | | ?????????????? | | ???????????????### ##### ####### ####### | | ?????????????????#####????####+#####???# ##????? | | ?????????????????#??????#?# #?#?# #???#?? | | ?????????????? ??????#????# """ " #??## #?????? | | ?????????????????????????## """ T ##### #? ??"? | | ????????????? ??????#?????# """ " / #?????? | | ??????????????????????????# ##### #?????? | | ??????????????????????????# """ #??## +?????? | | ??????????????????????????# """ #???# #?????? | | ??????????????????????????# """ ##??# #?????? | | ??????????????????????????#] #???# #????"? | | ??????????????????????????##########???# #?? ??? | +----------------------------------------------------+ Best States ------------- Heat Dissipation 31 Energy Generation 10 Energy Capacity 250 Matter Stores 300 Matter Capacity 300 Sight Range 16 Terrain Scan Range 16 Terrain Scan Density 85 Evasion (%) 55 Item Schematics ----------------- None Robot Schematics ------------------ None Fabricated ------------ Nothing Repaired ---------- Nothing Studied --------- None Alien Tech Used ----------------- None Achievements -------------- None Challenges ------------ None Game ------ Seed SmallPropulsionImpeller Manual? 0 Play Time 00:06:45 Cumulative 183.2 hours Start 2026.08.30 @ 18:12:27 End 2026.08.30 @ 18:18:04 Sessions 1 Manual Loads 0 Difficulty Rogue Special Mode None Game No. 364 Rogue 364 Adventurer 0 Explorer 0 Win Type - Total 2 Types 2/0/0/0/0/0/0/0/0/0 Lore% 59 Gallery% 60 Achievement% 47 Wizard Run 0 Options --------- Layout 2 ASCII 0 Keyboard 1 Movement Arrows Keybinds 0 Fullscreen 1 Font 24/Smallcaps Map View 50x44 Zoom Use 0% Tactical HUD 1 Map Filters NONE Filters NONE Steam 1 RUN: 6851381c-3ff7-4fb5-a946-3a95a21541e8